fUSD/lending_fUSD_20241023
["ID","MTS","AMOUNT","RATE_DAILY","PERIOD"]
[340698004,1729695038927,-210.0,0.00049594,120]
[340698005,1729695038937,-500.0,0.00049594,120]
[340698006,1729695038948,-956.6,0.00049594,120]
[340698007,1729695038957,-500.0,0.00049594,120]
[340698008,1729695038966,-500.0,0.00049594,120]
[340698009,1729695038976,-500.0,0.00049594,120]
[340698010,1729695038986,-1083.39959555,0.00049594,28]
[340698011,1729695038995,-500.0,0.00049594,120]
[340698012,1729695039004,-1237.23,0.00049594,120]
[340698013,1729695039013,-500.0,0.00049594,120]
[340698014,1729695039022,-500.0,0.00049594,120]
[340698015,1729695039032,-594.00397196,0.00049594,120]
[340698016,1729695039041,-500.0,0.00049594,120]
[340698017,1729695039051,-500.0,0.00049594,120]
[340698018,1729695039061,-500.0,0.00049594,120]
[340698019,1729695039070,-500.0,0.00049594,120]
[340698020,1729695039079,-500.0,0.00049594,120]
[340698021,1729695039089,-500.0,0.00049594,120]
[340698022,1729695039099,-5655.78,0.00049594,21]
[340698023,1729695039109,-500.0,0.00049594,120]
[340698024,1729695039119,-1000.0,0.00049594,120]
[340698025,1729695039128,-500.0,0.00049594,120]
[340698026,1729695039137,-500.0,0.00049594,120]
[340698027,1729695039147,-500.0,0.00049594,120]
[340698028,1729695039158,-500.0,0.00049594,120]
[340698029,1729695039167,-500.0,0.00049594,120]
[340698030,1729695039177,-500.0,0.00049594,120]
[340698031,1729695039187,-500.0,0.00049594,120]
[340698032,1729695039196,-1801.94,0.00049594,120]
[340698033,1729695039205,-1551.48,0.00049594,120]
[340698034,1729695039214,-500.0,0.00049594,120]
[340698035,1729695039222,-500.0,0.00049594,120]
[340698036,1729695039232,-2527.52,0.00049594,120]
[340698037,1729695039242,-946.91,0.00049594,120]
[340698038,1729695039251,-500.0,0.00049594,120]
[340698039,1729695039262,-500.0,0.00049594,120]
[340698040,1729695039271,-1036.64,0.00049594,120]
[340698041,1729695039280,-500.0,0.00049594,120]
[340698042,1729695039291,-2104.19,0.00049594,120]
[340698044,1729695039301,-500.0,0.00049594,120]
[340698046,1729695039311,-500.0,0.00049594,120]
[340698047,1729695039321,-271.18094076,0.00049594,120]
[340698049,1729695039332,-500.0,0.00049594,120]
[340698051,1729695039341,-500.0,0.00049594,120]
[340698053,1729695039350,-514.44,0.00049594,120]
[340698054,1729695039360,-742.05,0.00049594,120]
[340698055,1729695039370,-500.0,0.00049595,120]
[340698056,1729695039379,-500.0,0.00049595,120]
[340698057,1729695039388,-500.0,0.00049595,120]
[340698058,1729695039398,-500.0,0.00049595,120]
[340698059,1729695039408,-500.0,0.00049595,120]
[340698060,1729695039417,-500.0,0.00049595,120]
[340698061,1729695039426,-295.40760965,0.00049595,120]
[340698062,1729695039435,-546.83,0.00049595,120]
[340698063,1729695039444,-527.01,0.00049595,120]
[340698064,1729695039454,-633.57,0.00049595,120]
[340698065,1729695039464,-500.0,0.00049595,120]
[340698066,1729695039474,-500.0,0.00049595,120]
[340698067,1729695039484,-548.76,0.00049595,120]
[340698068,1729695039494,-500.0,0.00049595,120]
[340698069,1729695039504,-500.0,0.00049595,120]
[340698070,1729695039513,-442.03632503,0.00049595,120]
[340698071,1729695039523,-500.0,0.00049595,120]
[340698072,1729695039532,-500.0,0.00049595,120]
[340698073,1729695039542,-500.0,0.00049595,120]
[340698074,1729695039554,-500.0,0.00049595,120]
[340698075,1729695039564,-500.0,0.00049595,120]
[340698076,1729695039573,-500.0,0.00049595,120]
[340698077,1729695039583,-500.0,0.00049595,120]
[340698078,1729695039592,-500.0,0.00049595,120]
[340698079,1729695039602,-500.0,0.00049595,120]
[340698080,1729695039612,-552.51,0.00049595,120]
[340698081,1729695039621,-500.0,0.00049595,120]
[340698082,1729695039631,-452.83904287,0.00049595,120]
[340698083,1729695039640,-500.0,0.00049595,120]
[340698084,1729695039650,-500.0,0.00049595,120]
[340698085,1729695039660,-500.0,0.00049595,120]
[340698086,1729695039669,-1010.74,0.00049595,120]
[340698087,1729695039679,-226.36,0.00049595,120]
[340698088,1729695039689,-500.0,0.00049595,120]
[340698089,1729695039698,-500.0,0.00049595,120]
[340698090,1729695039708,-500.0,0.00049595,120]
[340698091,1729695039717,-500.0,0.00049595,120]
[340698092,1729695039727,-513.42781372,0.00049595,120]
[340698093,1729695039736,-500.0,0.00049595,120]
[340698094,1729695039746,-500.0,0.00049595,120]
[340698095,1729695039755,-664.87,0.00049595,120]
[340698096,1729695039764,-500.0,0.00049595,120]
[340698097,1729695039774,-500.0,0.00049595,120]
[340698098,1729695039787,-1025.87,0.00049595,120]
[340698099,1729695039796,-500.0,0.00049595,120]
[340698100,1729695039807,-500.0,0.00049595,120]
[340698101,1729695039816,-500.0,0.00049595,120]
[340698102,1729695039827,-500.0,0.00049595,120]
[340698103,1729695039837,-500.0,0.00049595,120]
[340698104,1729695039845,-500.0,0.00049595,120]
[340698105,1729695039855,-500.0,0.00049595,120]
[340698106,1729695039865,-500.0,0.00049595,120]
[340698107,1729695039876,-500.0,0.00049595,120]
[340698108,1729695039886,-500.0,0.00049595,120]
[340698109,1729695039895,-518.34494007,0.00049595,120]
[340698110,1729695039905,-475.14711683,0.00049595,120]
[340698111,1729695039915,-500.0,0.00049595,120]
[340698112,1729695039924,-500.0,0.00049595,120]
[340698113,1729695039934,-500.0,0.00049595,120]
[340698114,1729695039944,-500.0,0.00049595,120]
[340698116,1729695039953,-500.0,0.00049595,120]
[340698118,1729695039963,-500.0,0.00049595,120]
[340698119,1729695039973,-588.83,0.00049595,120]
[340698120,1729695039982,-4000.0,0.00049595,120]
[340698121,1729695039991,-4000.0,0.00049595,120]
[340698122,1729695040000,-500.0,0.00049595,120]
[340698123,1729695040011,-500.0,0.00049595,120]
[340698124,1729695040020,-2381.92,0.00049595,120]
[340698125,1729695040030,-500.0,0.00049595,120]
[340698126,1729695040039,-500.0,0.00049595,120]
[340698127,1729695040048,-1507.06,0.00049595,120]
[340698128,1729695040058,-500.0,0.00049595,120]
[340698129,1729695040068,-500.0,0.00049595,120]
[340698130,1729695040078,-500.0,0.00049595,120]
[340698131,1729695040088,-500.0,0.00049595,120]
[340698132,1729695040097,-3850.95,0.00049595,120]
[340698133,1729695040107,-525.58550641,0.00049595,120]
[340698134,1729695040117,-500.0,0.00049595,120]
[340698135,1729695040126,-500.0,0.00049595,120]
[340698136,1729695040135,-500.0,0.00049595,120]
[340698137,1729695040144,-500.0,0.00049595,120]
[340698138,1729695040154,-500.0,0.00049595,120]
[340698139,1729695040163,-500.0,0.00049595,120]
[340698140,1729695040172,-500.0,0.00049595,120]
[340698141,1729695040182,-500.0,0.00049595,120]
[340698142,1729695040192,-500.0,0.00049595,120]
[340698143,1729695040201,-618.02,0.00049595,120]
[340698144,1729695040210,-500.0,0.00049595,120]
[340698145,1729695040220,-500.0,0.00049595,120]
[340698146,1729695040230,-500.0,0.00049595,120]
[340698147,1729695040239,-500.0,0.00049595,120]
[340698148,1729695040248,-1937.11,0.00049595,120]
[340698149,1729695040258,-500.0,0.00049595,120]
[340698150,1729695040267,-2061.54,0.00049595,120]
[340698151,1729695040276,-511.98789969,0.00049595,120]
[340698152,1729695040286,-500.0,0.00049595,120]
[340698153,1729695040296,-500.0,0.00049595,120]
[340698154,1729695040308,-2726.69,0.00049595,120]
[340698155,1729695040317,-516.1031356,0.00049595,120]
[340698156,1729695040326,-500.0,0.00049595,120]
[340698157,1729695040335,-500.0,0.00049595,120]
[340698158,1729695040345,-519.87055653,0.00049595,120]
[340698159,1729695040354,-500.0,0.00049595,120]
[340698160,1729695040363,-500.0,0.00049595,120]
[340698161,1729695040373,-812.34,0.00049595,120]
[340698162,1729695040382,-500.0,0.00049595,120]
[340698163,1729695040391,-500.0,0.00049595,120]
[340698164,1729695040400,-500.0,0.00049595,120]
[340698165,1729695040409,-840.01,0.00049595,120]
[340698166,1729695040418,-511.41873997,0.00049595,120]
[340698167,1729695040427,-1694.03,0.00049595,120]
[340698168,1729695040437,-500.0,0.00049595,120]
[340698169,1729695040446,-500.0,0.00049595,120]
[340698170,1729695040455,-500.0,0.00049595,120]
[340698171,1729695040464,-500.0,0.00049595,120]
[340698172,1729695040473,-1245.48,0.00049595,120]
[340698173,1729695040483,-500.0,0.00049595,120]
[340698174,1729695040492,-500.0,0.00049595,120]
[340698175,1729695040501,-500.0,0.00049595,120]
[340698176,1729695040511,-500.0,0.00049595,90]
[340698177,1729695040521,-500.0,0.00049595,120]
[340698178,1729695040531,-1202.0,0.00049595,120]
[340698179,1729695040541,-2671.09,0.00049595,120]
[340698180,1729695040550,-500.0,0.00049595,120]
[340698181,1729695040561,-245000.0,0.00049596,2]
[340698182,1729695040571,-177.7135,0.00049597,2]
[340698183,1729695040581,-3994.5518,0.00049597,2]
[340698184,1729695040592,-500.0,0.00049597,2]
[340698185,1729695040603,-3039.253,0.00049597,2]
[340698186,1729695040613,-500.0,0.00049599,31]
[340698187,1729695040623,-324.62486434,0.00049599,31]
[340698188,1729695040633,-337.825978,0.000496,117]
[340698189,1729695040643,-1007.66,0.000496,117]
[340698190,1729695040653,-150.0,0.00049602,7]
[340698191,1729695040663,-150.0,0.00049604,7]
[340698192,1729695040673,-277.58059227,0.00049618,7]
[340698193,1729695040683,-150.0,0.00049636,7]
[340698194,1729695040693,-151.48,0.0004967,120]
[340698195,1729695040702,-151.48,0.00049675,120]
[340698196,1729695040712,-7500.0,0.0004968,120]
[340698197,1729695040722,-88888.0,0.00049685,120]
[340698198,1729695040732,-171.76811577,0.00049685,26]
[340698199,1729695040742,-500.0,0.00049685,120]
[340698200,1729695040752,-151.48,0.00049686,120]
[340698201,1729695040762,-1083.39959555,0.00049691,28]
[340698202,1729695040773,-150.0,0.00049693,7]
[340698203,1729695040785,-495.35728096,0.00049695,120]
[340698204,1729695040795,-500.0,0.00049695,120]
[340698205,1729695040805,-517.46,0.00049695,120]
[340698206,1729695040822,-500.0,0.00049695,120]
[340698207,1729695040831,-500.0,0.00049695,120]
[340698208,1729695040841,-500.0,0.00049695,120]
[340698209,1729695040851,-688.94,0.00049695,120]
[340698210,1729695040861,-3187.68,0.00049695,120]
[340698211,1729695040871,-720.0,0.00049695,120]
[340698212,1729695040881,-1671.38,0.00049695,120]
[340698213,1729695040891,-1870.15,0.00049695,120]
[340698214,1729695040901,-500.0,0.00049695,120]
[340698215,1729695040911,-548.44,0.00049695,120]
[340698216,1729695040921,-500.0,0.00049695,120]
[340698217,1729695040932,-639.46,0.00049695,120]
[340698218,1729695040942,-500.0,0.00049695,120]
[340698219,1729695040952,-500.0,0.00049695,120]
[340698220,1729695040962,-949.63,0.00049695,120]
[340698221,1729695040972,-5070.58,0.00049695,120]
[340698222,1729695040983,-2860.91,0.00049695,120]
[340698223,1729695040993,-4127.93,0.00049695,120]
[340698224,1729695041002,-500.0,0.00049696,120]
[340698225,1729695041012,-500.0,0.00049696,120]
[340698226,1729695041022,-500.0,0.00049696,120]
[340698227,1729695041032,-500.0,0.00049696,120]
[340698228,1729695041042,-500.0,0.00049696,120]
[340698229,1729695041051,-500.0,0.00049696,120]
[340698230,1729695041062,-500.0,0.00049696,120]
[340698231,1729695041072,-500.0,0.00049696,120]
[340698232,1729695041081,-500.0,0.00049696,120]
[340698233,1729695041091,-500.0,0.00049696,120]
[340698234,1729695041101,-133.05999092,0.00049696,120]
[340698235,1729695041148,-366.94000908,0.00049696,120]
[340698236,1729695041158,-500.0,0.00049696,120]
[340698237,1729695041168,-500.0,0.00049696,120]
[340698238,1729695041178,-500.0,0.00049696,120]
[340698239,1729695041188,-500.0,0.00049696,120]
[340698240,1729695041198,-500.0,0.00049696,120]
[340698241,1729695041208,-292.98686308,0.00049696,120]
[340698242,1729695041218,-500.0,0.00049696,120]
[340698243,1729695041227,-500.0,0.00049696,120]
[340698244,1729695041238,-500.0,0.00049696,120]
[340698245,1729695041248,-500.0,0.00049696,120]
[340698246,1729695041258,-500.0,0.00049696,120]
[340698247,1729695041267,-319.9511956,0.00049696,120]
[340698248,1729695041279,-180.0488044,0.00049696,120]
[340698249,1729695041289,-500.0,0.00049696,120]
[340698250,1729695041299,-320.91168096,0.00049696,120]
[340698251,1729695041714,-620.51,0.00049695,120]
[340698252,1729695041724,-179.08831904,0.00049696,120]
[340698253,1729695041733,-500.0,0.00049696,120]
[340698254,1729695041743,-500.0,0.00049696,120]
[340698255,1729695041752,-500.0,0.00049696,120]
[340698256,1729695041762,-500.0,0.00049696,120]
[340698257,1729695041772,-150.0,0.00049696,7]
[340698258,1729695041784,-500.0,0.00049696,120]
[340698259,1729695041794,-500.0,0.00049696,120]
[340698260,1729695041803,-500.0,0.00049696,120]
[340698261,1729695041815,-500.0,0.00049696,120]
[340698262,1729695041824,-704.8,0.00049696,120]
[340698263,1729695041834,-851.17,0.00049696,120]
[340698264,1729695041843,-500.0,0.00049696,120]
[340698265,1729695041853,-1610.91,0.00049696,120]
[340698266,1729695041863,-500.0,0.00049696,120]
[340698267,1729695041872,-500.0,0.00049696,120]
[340698268,1729695041881,-500.0,0.00049696,120]
[340698269,1729695041891,-2404.26,0.00049696,120]
[340698270,1729695041901,-500.0,0.00049696,120]
[340698271,1729695041911,-2023.4,0.00049696,120]
[340698272,1729695041921,-610.2,0.00049696,120]
[340698273,1729695041931,-500.0,0.00049696,120]
[340698274,1729695041940,-1452.47,0.00049696,120]
[340698275,1729695041949,-831.56,0.00049696,120]
[340698276,1729695041959,-500.0,0.00049696,120]
[340698277,1729695041969,-500.0,0.00049696,120]
[340698278,1729695041979,-623.53,0.00049696,120]
[340698279,1729695041989,-500.0,0.00049696,120]
[340698280,1729695041999,-500.0,0.00049696,120]
[340698281,1729695042009,-532.25986477,0.00049696,120]
[340698282,1729695042019,-777.0,0.00049696,120]
[340698283,1729695042028,-590.11,0.00049696,120]
[340698284,1729695042038,-500.0,0.00049696,120]
[340698285,1729695042047,-150.0,0.0004972,7]
[340698286,1729695042056,-150.0,0.00049755,7]
[340698287,1729695042066,-500.0,0.00049769,2]
[340698288,1729695042076,-500.0,0.00049769,120]
[340698289,1729695042086,-500.0,0.00049769,120]
[340698290,1729695042096,-151.48,0.0004977,120]
[340698291,1729695042107,-160.20705549,0.00049773,10]
[340698292,1729695042117,-150.50645867,0.00049773,10]
[340698293,1729695042126,-151.48,0.00049774,120]
[340698294,1729695042137,-500.0,0.00049779,120]
[340698295,1729695042147,-84671.29512497,0.0004978,120]
[340698296,1729695042157,-500.0,0.00049784,120]
[340698297,1729695042167,-722.51,0.00049784,120]
[340698298,1729695042177,-1345.84,0.00049784,120]
[340698299,1729695042186,-500.0,0.00049784,120]
[340698300,1729695042195,-1084.74,0.00049784,120]
[340698301,1729695042205,-500.0,0.00049784,120]
[340698302,1729695042215,-500.0,0.00049784,120]
[340698303,1729695042224,-500.0,0.00049784,120]
[340698304,1729695042234,-500.0,0.00049784,120]
[340698305,1729695042243,-1845.24,0.00049784,120]
[340698306,1729695042253,-841.4,0.00049784,120]
[340698307,1729695042262,-500.0,0.00049784,120]
[340698308,1729695042272,-678.77,0.00049784,120]
[340698309,1729695042281,-500.0,0.00049784,120]
[340698310,1729695042291,-500.0,0.00049784,120]
[340698311,1729695042300,-500.0,0.00049784,120]
[340698312,1729695042310,-500.0,0.00049784,120]
[340698313,1729695042320,-500.0,0.00049784,120]
[340698314,1729695042331,-494.59073297,0.00049784,120]
[340698315,1729695042341,-500.0,0.00049784,120]
[340698316,1729695042350,-564.76,0.00049784,120]
[340698317,1729695042360,-550.03,0.00049784,120]
[340698318,1729695042369,-500.0,0.00049784,120]
[340698319,1729695042379,-500.0,0.00049784,120]
[340698320,1729695042389,-500.0,0.00049784,120]
[340698321,1729695042398,-531.72,0.00049784,120]
[340698322,1729695042408,-1168.65,0.00049784,120]
[340698323,1729695042418,-500.0,0.00049784,120]
[340698325,1729695042427,-500.0,0.00049784,120]
[340698326,1729695042437,-500.0,0.00049784,120]
[340698327,1729695042446,-500.0,0.00049784,120]
[340698328,1729695042456,-500.0,0.00049784,120]
[340698329,1729695042465,-500.0,0.00049784,120]
[340698330,1729695042475,-500.0,0.00049784,120]
[340698331,1729695042486,-500.0,0.00049784,120]
[340698332,1729695042495,-500.0,0.00049784,120]
[340698333,1729695042505,-582.29,0.00049784,120]
[340698334,1729695042515,-500.0,0.00049784,120]
[340698335,1729695042525,-500.0,0.00049784,120]
[340698336,1729695042535,-500.0,0.00049784,120]
[340698337,1729695042544,-500.0,0.00049784,120]
[340698338,1729695042553,-500.0,0.00049784,120]
[340698339,1729695042564,-500.0,0.00049784,120]
[340698340,1729695042573,-500.0,0.00049784,120]
[340698341,1729695042583,-500.0,0.00049784,120]
[340698342,1729695042592,-500.0,0.00049784,120]
[340698343,1729695042602,-500.0,0.00049784,120]
[340698344,1729695042612,-500.0,0.00049784,120]
[340698345,1729695042621,-500.0,0.00049784,120]
[340698346,1729695042631,-500.0,0.00049784,120]
[340698347,1729695042640,-500.0,0.00049784,2]
[340698348,1729695042651,-300.0,0.00049784,120]
[340698349,1729695042660,-500.0,0.00049784,120]
[340698350,1729695042670,-500.0,0.00049784,120]
[340698351,1729695042681,-500.0,0.00049784,120]
[340698352,1729695042691,-500.0,0.00049784,120]
[340698353,1729695042701,-500.0,0.00049784,120]
[340698354,1729695042711,-500.0,0.00049784,120]
[340698355,1729695042721,-500.0,0.00049784,120]
[340698356,1729695042730,-500.0,0.00049784,120]
[340698357,1729695042739,-500.0,0.00049784,120]
[340698358,1729695042749,-500.0,0.00049784,120]
[340698359,1729695042758,-500.0,0.00049784,120]
[340698360,1729695042767,-230.66443602,0.00049784,120]
[340698361,1729695042780,-500.0,0.00049784,120]
[340698362,1729695042789,-500.0,0.00049784,120]
[340698363,1729695042799,-500.0,0.00049784,120]
[340698364,1729695042808,-735.4,0.00049784,120]
[340698365,1729695042818,-500.0,0.00049784,120]
[340698366,1729695042828,-500.0,0.00049784,120]
[340698367,1729695042838,-500.0,0.00049784,120]
[340698368,1729695042847,-500.0,0.00049784,120]
[340698369,1729695042858,-500.0,0.00049784,120]
[340698370,1729695042868,-500.0,0.00049784,120]
[340698371,1729695042877,-500.0,0.00049784,120]
[340698372,1729695042887,-1768.35,0.00049784,120]
[340698373,1729695042897,-868.01,0.00049784,7]
[340698374,1729695042906,-500.0,0.00049784,120]
[340698375,1729695042917,-500.0,0.00049784,120]
[340698376,1729695042927,-500.0,0.00049784,120]
[340698377,1729695042937,-812.19,0.00049784,120]
[340698378,1729695042946,-500.0,0.00049784,120]
[340698379,1729695042956,-500.0,0.00049784,120]
[340698380,1729695042966,-500.0,0.00049784,120]
[340698381,1729695042975,-500.0,0.00049784,120]
[340698382,1729695042985,-500.0,0.00049784,120]
[340698383,1729695042994,-521.61,0.00049784,120]
[340698384,1729695043004,-353.95760741,0.00049784,120]
[340698385,1729695043014,-500.0,0.00049784,120]
[340698386,1729695043023,-641.46,0.00049784,120]
[340698389,1729695043292,-500.0,0.00049784,120]
[340698390,1729695043303,-500.0,0.00049784,120]
[340698391,1729695043314,-500.0,0.00049784,120]
[340698392,1729695043324,-683.15,0.00049784,120]
[340698393,1729695043334,-500.0,0.00049784,120]
[340698394,1729695043343,-500.0,0.00049784,120]
[340698395,1729695043354,-500.0,0.00049784,120]
[340698396,1729695043364,-500.0,0.00049784,120]
[340698397,1729695043373,-500.0,0.00049784,120]
[340698398,1729695043384,-500.0,0.00049784,120]
[340698399,1729695043393,-500.0,0.00049784,120]
[340698400,1729695043403,-500.0,0.00049784,120]
[340698401,1729695043413,-500.0,0.00049784,120]
[340698402,1729695043422,-500.0,0.00049784,120]
[340698403,1729695043432,-500.0,0.00049784,120]
[340698404,1729695043442,-534.35,0.00049784,120]
[340698405,1729695043453,-500.0,0.00049784,120]
[340698406,1729695043463,-292.36109002,0.00049784,120]
[340698407,1729695043473,-549.24,0.00049784,120]
[340698408,1729695043483,-947.82,0.00049784,120]
[340698409,1729695043494,-628.80780362,0.00049784,120]
[340698410,1729695043505,-512.39669681,0.00049784,120]
[340698411,1729695043515,-444.35338566,0.00049784,120]
[340698412,1729695043525,-717.45,0.00049784,120]
[340698413,1729695043535,-500.0,0.00049784,120]
[340698414,1729695043545,-500.0,0.00049784,120]
[340698415,1729695043555,-500.0,0.00049784,120]
[340698416,1729695043566,-500.0,0.00049784,120]
[340698417,1729695043576,-500.0,0.00049784,120]
[340698418,1729695043587,-500.0,0.00049784,120]
[340698419,1729695043597,-500.0,0.00049784,120]
[340698420,1729695043606,-500.0,0.00049784,120]
[340698421,1729695043616,-500.0,0.00049784,120]
[340698422,1729695043626,-500.0,0.00049784,120]
[340698423,1729695043635,-315.43523228,0.00049784,120]
[340698424,1729695043645,-500.0,0.00049784,120]
[340698425,1729695043655,-500.0,0.00049784,120]
[340698426,1729695043665,-500.0,0.00049784,120]
[340698427,1729695043675,-500.0,0.00049784,120]
[340698428,1729695043684,-500.0,0.00049784,120]
[340698429,1729695043694,-500.0,0.00049784,120]
[340698430,1729695043704,-500.0,0.00049784,120]
[340698431,1729695043714,-500.0,0.00049784,120]
[340698432,1729695043723,-500.0,0.00049784,120]
[340698433,1729695043733,-310.73467183,0.00049784,120]
[340698434,1729695043742,-500.0,0.00049784,120]
[340698435,1729695043751,-500.0,0.00049784,120]
[340698436,1729695043760,-500.0,0.00049784,120]
[340698437,1729695043770,-909.83,0.00049784,120]
[340698438,1729695043783,-500.0,0.00049784,120]
[340698439,1729695043793,-500.0,0.00049784,120]
[340698440,1729695043802,-500.0,0.00049784,120]
[340698441,1729695043812,-500.0,0.00049784,120]
[340698442,1729695043821,-500.0,0.00049784,120]
[340698443,1729695043831,-500.0,0.00049784,120]
[340698444,1729695043840,-810.49,0.00049784,120]
[340698445,1729695043849,-500.0,0.00049784,120]
[340698446,1729695043859,-500.0,0.00049784,120]
[340698447,1729695043869,-500.0,0.00049784,120]
[340698448,1729695043879,-500.0,0.00049784,120]
[340698449,1729695043889,-177.54659048,0.00049784,120]
[340698450,1729695043899,-638.91,0.00049784,120]
[340698451,1729695043908,-500.0,0.00049784,120]
[340698452,1729695043917,-500.0,0.00049784,120]
[340698453,1729695043927,-500.0,0.00049784,120]
[340698454,1729695043936,-500.0,0.00049784,120]
[340698455,1729695043946,-500.0,0.00049784,120]
[340698456,1729695043955,-500.0,0.00049784,120]
[340698457,1729695043964,-500.0,0.00049784,120]
[340698458,1729695043973,-500.0,0.00049784,120]
[340698459,1729695043983,-500.0,0.00049784,120]
[340698460,1729695043993,-500.0,0.00049784,120]
[340698461,1729695044003,-500.0,0.00049784,120]
[340698462,1729695044012,-500.0,0.00049784,120]
[340698463,1729695044021,-500.0,0.00049784,120]
[340698464,1729695044032,-500.0,0.00049784,14]
[340698465,1729695044041,-500.0,0.00049784,120]
[340698466,1729695044050,-500.0,0.00049784,120]
[340698467,1729695044060,-500.0,0.00049784,120]
[340698468,1729695044069,-500.0,0.00049784,120]
[340698469,1729695044079,-500.0,0.00049784,120]
[340698470,1729695044090,-500.0,0.00049784,120]
[340698471,1729695044100,-500.0,0.00049784,120]
[340698472,1729695044109,-500.0,0.00049784,120]
[340698473,1729695044119,-360.0563177,0.00049784,120]
[340698474,1729695044129,-500.0,0.00049784,120]
[340698475,1729695044139,-500.0,0.00049784,120]
[340698476,1729695044148,-500.0,0.00049784,120]
[340698477,1729695044158,-500.0,0.00049784,120]
[340698478,1729695044168,-500.0,0.00049784,120]
[340698479,1729695044177,-350.19696418,0.00049784,120]
[340698480,1729695044187,-150.0,0.00049784,120]
[340698481,1729695044196,-500.0,0.00049784,120]
[340698482,1729695044207,-500.0,0.00049784,120]
[340698483,1729695044217,-500.0,0.00049784,120]
[340698484,1729695044228,-500.0,0.00049784,120]
[340698485,1729695044238,-500.0,0.00049784,120]
[340698486,1729695044248,-1263.1,0.00049784,120]
[340698487,1729695044258,-500.0,0.00049784,120]
[340698488,1729695044268,-500.0,0.00049784,120]
[340698489,1729695044278,-500.0,0.00049784,120]
[340698490,1729695044287,-500.0,0.00049784,120]
[340698491,1729695044297,-500.0,0.00049784,120]
[340698492,1729695044307,-500.0,0.00049784,120]
[340698493,1729695044320,-500.0,0.00049784,120]
[340698494,1729695044330,-500.0,0.00049784,120]
[340698495,1729695044340,-564.29,0.00049784,120]
[340698496,1729695044350,-500.0,0.00049784,120]
[340698497,1729695044360,-500.0,0.00049784,120]
[340698498,1729695044370,-557.88,0.00049784,120]
[340698499,1729695044379,-500.0,0.00049784,120]
[340698500,1729695044389,-500.0,0.00049784,120]
[340698501,1729695044400,-500.0,0.00049784,120]
[340698502,1729695044410,-500.0,0.00049784,120]
[340698503,1729695044420,-500.0,0.00049784,120]
[340698504,1729695044431,-686.88,0.00049784,120]
[340698505,1729695044441,-500.0,0.00049784,60]
[340698506,1729695044451,-585.56,0.00049784,120]
[340698507,1729695044461,-500.0,0.00049784,120]
[340698508,1729695044471,-500.0,0.00049784,120]
[340698509,1729695044482,-500.0,0.00049784,120]
[340698510,1729695044494,-500.0,0.00049784,120]
[340698511,1729695044504,-676.0,0.00049784,120]
[340698512,1729695044515,-500.0,0.00049784,120]
[340698513,1729695044525,-500.0,0.00049784,120]